lending/lending_fUSD_20240605
["ID","MTS","AMOUNT","RATE_DAILY","PERIOD"]
[328592975,1717585755316,-250.0,0.00023955,2]
[328592976,1717585755338,-2000.0,0.00024029,3]
[328592977,1717585755360,-564.53,0.00024058,2]
[328592978,1717585755381,-1121.65,0.00024193,2]
[328592979,1717585755401,-499.99,0.00024193,2]
[328592980,1717585755423,-567.58,0.00024247,2]
[328592981,1717585755446,-168.84,0.00024257,2]
[328592982,1717585755468,-167.52,0.00024384,2]
[328592983,1717585755495,-155.33,0.00024384,2]
[328592984,1717585755515,-250.0,0.00024456,2]
[328592985,1717585755535,-150.99,0.00024456,2]
[328592986,1717585755556,-150.99,0.00024456,2]
[328592987,1717585755575,-412.75360643,0.00024789,2]
[328592988,1717585755597,-800.0,0.000248,9]
[328592989,1717585755617,-700.0,0.00024887,2]
[328592990,1717585755637,-291.64092154,0.00024899,2]
[328592991,1717585755657,-179.98978856,0.000249,2]
[328592992,1717585755678,-18208.74955201,0.000249,2]
[328592993,1717585755701,-115.80316728,0.000249,2]
[328592995,1717585832403,-226.57668191,0.000201,2]
[328592997,1717585832413,-73.42331809,0.00024517,2]
[328592999,1717585832425,-176.57668191,0.00024517,2]
[328593001,1717585832435,-157.03,0.00024643,2]
[328593003,1717585832444,-808.43729225,0.00024899,2]
[328593006,1717585832454,-2269.35883953,0.000249,2]
[328593010,1717585832584,-2711.87217364,0.000249,2]
[328593011,1717585832594,-876.73060784,0.000249,2]
[328593012,1717585832605,-1700.0,0.000249,9]
[328593013,1717585832614,-360.39290389,0.000249,2]
[328593014,1717585832624,-553.91819281,0.000249,2]
[328593020,1717585832807,-261.62382088,0.000249,2]
[328593022,1717585832822,-629.99914214,0.000249,2]
[328593025,1717585832841,-1611.94492716,0.000249,2]
[328593027,1717585832850,-869.21,0.0002499,2]
[328593029,1717585832860,-227.90856439,0.0002499,2]
[328593031,1717585832869,-152.0,0.0002499,2]
[328593032,1717585832879,-152.0,0.0002499,2]
[328593033,1717585832889,-152.0,0.0002499,2]
[328593034,1717585832898,-152.0,0.0002499,2]
[328593035,1717585832909,-152.0,0.0002499,2]
[328593036,1717585832918,-152.0,0.0002499,2]
[328593037,1717585832927,-462.97836922,0.00024999,10]
[328593038,1717585832937,-296.512316,0.00024999,2]
[328593039,1717585832946,-157.09743161,0.00024999,10]
[328593040,1717585832955,-508.33070691,0.00024999,2]
[328593042,1717585832965,-185.21500934,0.00024999,2]
[328593044,1717585832974,-500.0,0.00024999,2]
[328593045,1717585832983,-217.85601724,0.00024999,2]
[328593046,1717585832993,-2517.28106,0.00024999,2]
[328593047,1717585833003,-7301.691,0.00025,2]
[328593048,1717585833012,-113717.33452339,0.00025,13]
[328593049,1717585833024,-418.27830624,0.00025,13]
[328593050,1717585833035,-364.7,0.00025,13]
[328593051,1717585833047,-697.11121979,0.00025,13]
[328593054,1717585838680,-566.34980186,0.00025,13]
[328593055,1717585838888,-10418.57500015,0.00025,13]
[328593056,1717585838901,-9807.37127088,0.00025,13]
[328593073,1717585841429,-1107.91510038,0.00025,13]
[328593075,1717585843565,-158369.68249929,0.00025,13]
[328593076,1717585843575,-418251.56717769,0.00025,2]
[328593077,1717585843586,-678450.91595586,0.00025,2]
[328593078,1717585843599,-73665.98998742,0.00025,2]
[328593079,1717585844068,-1508.7644094,0.00025,2]
[328593080,1717585844080,-6985.61950846,0.00025,2]
[328593081,1717585844091,-424.5191321,0.00025,2]
[328593082,1717585844103,-3720.0,0.00025,2]
[328593083,1717585844114,-2644.19139541,0.00025,2]
[328593084,1717585844125,-10499.04190006,0.00025,2]
[328593086,1717585844283,-2572.77791097,0.00025,2]
[328593087,1717585844294,-2503.9259917,0.00025,2]
[328593088,1717585844308,-418.8533999,0.00025,2]
[328593089,1717585844319,-1757.42531475,0.00025,2]
[328593090,1717585844331,-8495.27243142,0.00025,2]
[328593333,1717585846682,-226.57668191,0.000201,2]
[328593335,1717585846692,-4631.13548486,0.00025,2]
[328593337,1717585846701,-924.5200943,0.00025,10]
[328593354,1717585846852,-425.4799057,0.00025,10]
[328593356,1717585846862,-150.0,0.00025,2]
[328593358,1717585846872,-1250.0,0.00025,2]
[328593360,1717585846881,-970.76240948,0.00025,2]
[328593362,1717585846890,-176.04924907,0.00025048,2]
[328593363,1717585846902,-26.79075093,0.00025048,2]
[328593364,1717585846911,-254.21806148,0.00025205,2]
[328593365,1717585846922,-442.73193852,0.00025205,2]
[328593366,1717585846931,-961.49314131,0.00025355,2]
[328593369,1717585847021,-948.47076425,0.00025355,2]
[328594243,1717586380273,-155.31918261,0.00017159,2]
[328594244,1717586380296,-857.11494775,0.00017259,2]
[328594245,1717586380320,-2812.27869727,0.00017259,2]
[328594262,1717586748180,-226.57668191,0.000201,2]
[328594263,1717586748203,-534.69149389,0.00022722,2]
[328594265,1717586757181,711.55,0.0002,2]
[328594269,1717586844116,-226.57668191,0.000201,2]
[328594270,1717586844139,-574.49,0.00022077,2]
[328594271,1717586844161,-1000.0,0.00023865,2]
[328594272,1717586844181,-279.11,0.00023986,2]
[328594273,1717586844202,-171.91,0.00024035,2]
[328594274,1717586844228,-230.51,0.00024056,2]
[328594275,1717586844250,-1905.47,0.0002412,2]
[328594276,1717586844271,-499.99,0.0002412,2]
[328594277,1717586844293,-196.45,0.00024183,2]
[328594278,1717586844315,-250.0,0.00024226,2]
[328594279,1717586844338,-574.49,0.00024341,2]
[328594280,1717586844360,-176.99,0.00024384,2]
[328594281,1717586844382,-223.279709,0.00024384,2]
[328594282,1717586844403,-1235.15,0.00024468,2]
[328594283,1717586844424,-168.15,0.00024471,2]
[328594284,1717586844447,-250.0,0.0002464,2]
[328594285,1717586844468,-607.31474073,0.00024848,2]
[328594286,1717586844489,-1121.970001,0.00024873,2]
[328594287,1717586844510,-155.37503968,0.00024999,2]
[328594288,1717586844532,-156.84533381,0.00025,2]
[328594289,1717586844553,-167.48,0.00025181,2]
[328594290,1717586844574,-223.279709,0.00025205,2]
[328594291,1717586844596,-171.91,0.00025237,2]
[328594292,1717586844619,-5480.98675391,0.00025304,2]
[328594293,1717586844831,-3043.42537844,0.00025304,2]
[328594294,1717586844859,-235.9596313,0.00025351,2]
[328594295,1717586844881,-19176.6815044,0.00025351,2]
[328594296,1717586844903,-217.93160116,0.00025352,2]
[328594297,1717586844925,-313.11538181,0.00025353,2]
[328594298,1717586844947,-296.512316,0.00025353,2]
[328594299,1717586844974,-417.19814555,0.00025353,2]
[328594300,1717586844995,-1224.51306947,0.00025353,2]
[328594301,1717586845016,-155.72910199,0.00025353,2]
[328594302,1717586845040,-243.5800741,0.00025353,2]
[328594303,1717586845061,-563.20416139,0.00025353,2]
[328594304,1717586845082,-260.62120855,0.00025353,2]
[328594305,1717586845102,-237.55124908,0.00025353,2]
[328594306,1717586845124,-223.56706494,0.00025353,2]
[328594307,1717586845151,-3020.34799069,0.00025353,2]
[328594308,1717586845171,-533.27644779,0.00025353,2]
[328594309,1717586845192,-1262.91121604,0.00025353,2]
[328594310,1717586845212,-156.17016932,0.00025353,2]
[328594311,1717586845233,-786.5245811,0.00025353,2]
[328594312,1717586845253,-155.832471,0.00025353,2]
[328594313,1717586845273,-156.70126362,0.00025353,2]
[328594314,1717586845294,-305.34937207,0.00025353,2]
[328594315,1717586845319,-156.57298962,0.00025353,2]
[328594316,1717586845339,-234.31796451,0.00025353,2]
[328594317,1717586845360,-162.17154766,0.00025353,2]
[328594318,1717586845395,-373.17305541,0.00025353,2]
[328594319,1717586845417,-177.50167766,0.00025353,2]
[328594320,1717586845439,-641.24224951,0.00025353,2]
[328594321,1717586845461,-200.44231992,0.00025354,2]
[328594322,1717586845485,-202.39598207,0.00025354,2]
[328594323,1717586845507,-1202.87340608,0.00025355,2]
[328594324,1717586845531,-3000.0,0.00025355,2]
[328594325,1717586845553,-7984.7294342,0.00025368,2]
[328594326,1717586845575,-152.85061954,0.00025385,2]
[328594327,1717586851184,-1250.0,0.00025,2]
[328594328,1717586851205,-2448.33917151,0.00025385,2]
[328594332,1717586945102,-226.57668191,0.000201,2]
[328594333,1717586945122,-599.94303689,0.00025,2]
[328594334,1717586945143,-25559.9052812,0.00025385,2]
[328594335,1717586946194,-108624.74459635,0.00025385,2]
[328594336,1717586946221,-2500.0,0.00025385,2]
[328594337,1717586946244,-155.18147197,0.00025402,2]
[328594338,1717586946282,-253.55548396,0.00025403,2]
[328594339,1717586955203,-223.279709,0.00026027,2]
[328594340,1717586955233,-250.0,0.00026099,2]
[328594341,1717586962523,226.57668191,0.00020546,2]
[328594342,1717586982567,226.57668191,0.000201,2]
[328594343,1717587000490,226.57668191,0.000201,2]
[328594344,1717587002582,161.33,0.00024384,2]
[328594345,1717587011773,158.16581,0.00026099,2]
[328594346,1717587020549,226.57668191,0.000201,2]
[328594347,1717587022028,156.295797,0.00024384,2]
[328594348,1717587023394,156.295797,0.00025205,2]
[328594349,1717587024467,156.295797,0.00026027,2]
[328594355,1717587031787,-797.37400748,0.00026382,2]
[328594356,1717587031799,-819.28,0.00026382,2]
[328594357,1717587031811,-935.99632994,0.00026382,2]
[328594358,1717587031823,-669.94125223,0.00026382,2]
[328594359,1717587031834,-12429.9452424,0.00026382,2]
[328594360,1717587031850,-525.69056102,0.00026382,2]
[328594361,1717587031997,-674.06781032,0.00026382,2]
[328594362,1717587032009,-317.65,0.00026382,2]
[328594363,1717587032194,-34018.31119521,0.00026382,2]
[328594365,1717587032206,-54870.3433332,0.00026382,2]
[328594367,1717587032215,-6191.059141,0.00026382,2]
[328594369,1717587032225,-744.646608,0.000264,2]
[328594371,1717587032235,-171.91,0.00026439,2]
[328594373,1717587032244,-180.0,0.00026439,2]
[328594375,1717587032254,-574.49,0.00026605,2]
[328594377,1717587032263,-263.26,0.00026712,2]
[328594379,1717587032274,-11612.38236795,0.00026733,2]
[328594381,1717587032283,-633.15910865,0.00026749,2]
[328594383,1717587032294,-2105.923732,0.00026749,2]
[328594385,1717587032304,-172.63,0.00026813,2]
[328594387,1717587032313,-1000.0,0.00026849,2]
[328594389,1717587032322,-156.295797,0.00026849,2]
[328594391,1717587032331,-1905.47,0.0002686,2]
[328594393,1717587032341,-1988.89495372,0.00027,2]
[328594395,1717587032353,-865.46028817,0.00027,2]
[328594402,1717587037989,-1169.9423948,0.00027,2]
[328594403,1717587037999,-105.21087762,0.00027,2]
[328594404,1717587038032,-1194.78912238,0.00027,2]
[328594405,1717587038043,-161.21054668,0.00027077,2]
[328594406,1717587038053,-201.10144202,0.00027087,2]
[328594407,1717587038062,-2739.08284058,0.00027099,2]
[328594408,1717587038072,-152.74113258,0.00027114,2]
[328594409,1717587038082,-152.74113258,0.00027146,2]
[328594410,1717587038092,-166.66666667,0.0002715,2]
[328594411,1717587038101,-155.93993538,0.00027161,2]
[328594412,1717587038111,-153.83244732,0.00027201,2]
[328594413,1717587038121,-161.21054668,0.00027215,2]
[328594414,1717587038130,-176.371291,0.00027222,2]
[328594415,1717587038140,-809.97381522,0.00027297,2]
[328594416,1717587038749,-4122.91426329,0.00027297,2]
[328594417,1717587038759,-153.83244732,0.00027361,2]
[328594418,1717587038769,-809.5948544,0.0002739,2]
[328594419,1717587038780,-1000.0,0.00027397,2]
[328594420,1717587038790,-1000.0,0.00027397,2]
[328594421,1717587038800,-1000.0,0.00027397,2]
[328594422,1717587038810,-1000.0,0.00027397,2]
[328594423,1717587038819,-1000.0,0.00027397,2]
[328594424,1717587038829,-1000.0,0.00027397,2]
[328594425,1717587038843,-1000.0,0.00027397,2]
[328594426,1717587038852,-1000.0,0.00027397,2]
[328594427,1717587038862,-1000.0,0.00027397,2]
[328594428,1717587038872,-1000.0,0.00027397,2]
[328594429,1717587038883,-1000.0,0.00027397,2]
[328594430,1717587038892,-1000.0,0.00027397,2]
[328594431,1717587038902,-1000.0,0.00027397,2]
[328594432,1717587038911,-1000.0,0.00027397,2]
[328594433,1717587038924,-1000.0,0.00027397,2]
[328594434,1717587038935,-1000.0,0.00027397,2]
[328594435,1717587038945,-1000.0,0.00027397,2]
[328594436,1717587038955,-1000.0,0.00027397,2]
[328594437,1717587038966,-626.0,0.00027397,2]
[328594438,1717587038975,-150.0,0.00027397,2]
[328594439,1717587038985,-896.09,0.00027397,10]
[328594440,1717587038995,-152.74113258,0.00027401,2]
[328594441,1717587039004,-1107.7039134,0.00027427,2]
[328594442,1717587039014,-326.10104892,0.00027427,2]
[328594443,1717587039023,-2739.08284058,0.00027449,2]
[328594444,1717587039034,-152.74113258,0.00027473,2]
[328594445,1717587039045,-155.93993538,0.00027485,2]
[328594446,1717587039054,-161.84,0.00027517,2]
[328594447,1717587039064,-29874.13706799,0.00027527,2]
[328594448,1717587039826,-134878.19023905,0.00027527,2]
[328594450,1717587039844,-10990.50699997,0.00027527,2]
[328594456,1717587040495,226.57668191,0.00020546,2]
[328594471,1717587043154,-2848.42084007,0.00027527,2]
[328594472,1717587043560,-84.58535292,0.00027527,2]
[328594473,1717587043596,-4021.60225938,0.00027527,2]
[328594474,1717587043608,-62302.55724062,0.00027527,2]
[328594475,1717587043618,-1000.0,0.00027527,2]
[328594476,1717587043627,-21504.3839,0.00027527,2]
[328594477,1717587043637,-98681.453,0.00027527,2]
[328594478,1717587043646,-150.0,0.00027534,2]
[328594479,1717587043656,-4932.88807846,0.00027586,2]
[328594480,1717587043665,-152.74113258,0.00027599,2]
[328594481,1717587043675,-171.91,0.0002764,2]
[328594482,1717587043684,-154.45117623,0.00027642,2]
[328594483,1717587043693,-155.93993538,0.00027647,2]
[328594484,1717587043703,-20000.0,0.00027661,2]
[328594485,1717587043713,-150.0,0.00027671,2]
[328594486,1717587043723,-156.295797,0.00027671,14]
[328594487,1717587043732,-155.24587919,0.00027679,2]
[328594488,1717587043742,-1107.70391333,0.0002776,2]
[328594489,1717587043752,-2739.08284058,0.00027799,2]
[328594490,1717587043762,-150.0,0.00027808,2]
[328594491,1717587043771,-4932.88807846,0.00027875,2]
[328594492,1717587043782,-326.10104889,0.00027922,2]
[328594493,1717587043791,-150.0,0.00027945,2]
[328594494,1717587043800,-155.93993538,0.00027951,2]
[328594495,1717587043810,-337.42728181,0.00028,7]
[328594496,1717587043819,-152.74113258,0.00028046,2]
[328594497,1717587043829,-154.45117623,0.00028078,2]
[328594498,1717587043839,-150.0,0.00028082,2]
[328594499,1717587043852,-1107.70391333,0.00028094,2]
[328594500,1717587043863,-2617.0,0.000281,2]
[328594501,1717587043873,-2739.08284058,0.00028149,2]
[328594502,1717587043882,-4932.88807846,0.00028165,2]
[328594503,1717587043893,-154.09380626,0.00028198,2]
[328594504,1717587043903,-754.0,0.000282,2]
[328594505,1717587043912,-150.0,0.00028219,2]
[328594506,1717587043923,-163.11079315,0.00028301,2]
[328594507,1717587043932,-154.09380626,0.00028305,2]
[328594508,1717587043942,-155.93993538,0.00028307,2]
[328594509,1717587043952,-152.74113258,0.00028334,2]
[328594510,1717587043961,-150.0,0.00028356,2]
[328594511,1717587043970,-155.2626538,0.00028386,2]
[328594512,1717587043980,-390.629,0.00028408,2]
[328594513,1717587043990,-5149.0,0.00028408,2]
[328594514,1717587043999,-1470.0,0.00028408,2]
[328594515,1717587044009,-326.10104889,0.00028416,2]
[328594516,1717587044019,-150.0,0.00028427,5]
[328594517,1717587044028,-1107.70391333,0.00028427,2]
[328594518,1717587044039,-4932.88807846,0.00028454,2]
[328594519,1717587044051,-155.54368379,0.00028488,2]
[328594520,1717587044061,-150.0,0.00028493,2]
[328594521,1717587044071,-156.295797,0.00028493,14]
[328594522,1717587044081,-321.08881684,0.00028498,2]
[328594523,1717587044091,-2739.08284058,0.000285,2]
[328594524,1717587044102,-157.06052,0.00028548,3]
[328594525,1717587044111,-7500.0,0.00028582,2]
[328594526,1717587044122,-157.06052,0.00028598,3]
[328594527,1717587044132,-700.0,0.000286,10]
[328594528,1717587044142,-20000.0,0.00028621,2]
[328594529,1717587044151,-150.0,0.0002863,2]
[328594530,1717587044161,-157.06052,0.00028648,3]
[328594531,1717587044171,-164.591,0.00028682,2]
[328594532,1717587044180,-216.0,0.00028682,2]
[328594533,1717587044190,-1303.0,0.00028682,2]
[328594534,1717587044200,-150.0,0.00028682,2]
[328594535,1717587044209,-2132.678,0.00028682,2]
[328594536,1717587044219,-3172.0,0.00028682,2]
[328594537,1717587044229,-255.194,0.00028682,2]
[328594538,1717587044238,-161.21054668,0.00028694,2]
[328594539,1717587044248,-157.06052,0.00028698,3]
[328594540,1717587044258,-154.45117623,0.00028699,2]
[328594541,1717587044267,-1500.0,0.000287,10]
[328594542,1717587044277,-154.45117623,0.00028711,2]
[328594543,1717587044288,-321.08881683,0.00028741,2]
[328594544,1717587044298,-4932.88807846,0.00028743,2]
[328594545,1717587044308,-157.06052,0.00028748,3]
[328594546,1717587044317,-997.072,0.00028756,2]
[328594547,1717587044327,-294.848,0.00028756,2]
[328594548,1717587044336,-5203.793,0.00028756,2]
[328594549,1717587044345,-1107.70391333,0.0002876,2]
[328594550,1717587044355,-150.0,0.00028767,2]
[328594551,1717587044365,-153.83244732,0.00028779,2]
[328594552,1717587044375,-157.06052,0.00028798,3]
[328594553,1717587044385,-2300.0,0.000288,10]
[328594554,1717587044394,-200.0,0.00028801,2]
[328594555,1717587044403,-1000.0,0.00028801,30]
[328594556,1717587044413,-500.0,0.00028801,2]
[328594557,1717587044423,-200.0,0.00028801,2]
[328594558,1717587044432,-155.24587921,0.00028804,2]
[328594559,1717587044442,-150.0,0.00028816,2]
[328594560,1717587044452,-154.45117623,0.00028817,2]
[328594561,1717587044462,-150.0,0.00028823,2]
[328594562,1717587044471,-150.0,0.00028827,2]
[328594563,1717587044481,-150.0,0.0002883,2]
[328594564,1717587044491,-150.0,0.00028831,2]
[328594565,1717587044500,-171.91,0.00028842,2]
[328594566,1717587044510,-157.06052,0.00028848,3]
[328594567,1717587044520,-150.0,0.00028848,2]
[328594568,1717587044529,-500.0,0.00028848,2]
[328594569,1717587044539,-150.0,0.00028849,2]
[328594570,1717587044549,-2739.08284058,0.0002885,2]
[328594571,1717587044559,-150.0,0.00028852,2]
[328594572,1717587044569,-150.0,0.00028855,2]
[328594573,1717587044579,-155.54368379,0.00028864,2]
[328594574,1717587044589,-574.49,0.00028869,2]
[328594575,1717587044598,-150.0,0.00028869,2]
[328594576,1717587044608,-150.0,0.00028873,2]
[328594577,1717587044617,-150.0,0.0002888,2]
[328594578,1717587044627,-150.0,0.00028891,2]
[328594579,1717587044636,-150.0,0.00028894,2]
[328594580,1717587044646,-157.06052,0.00028898,3]
[328594581,1717587044655,-175.55555524,0.00028898,2]
[328594582,1717587044664,-179.98978856,0.000289,2]
[328594583,1717587044673,-16551.79127476,0.000289,2]
[328594584,1717587044683,-3000.0,0.000289,10]
[328594585,1717587044692,-1000.0,0.000289,2]
[328594586,1717587044702,-150.0,0.00028904,2]
[328594587,1717587044711,-150.78,0.00028904,2]
[328594588,1717587044721,-150.0,0.00028905,2]
[328594589,1717587044730,-150.0,0.00028906,2]
[328594590,1717587044740,-150.0,0.00028906,2]
[328594591,1717587044749,-326.10104889,0.00028911,2]
[328594592,1717587044759,-150.0,0.00028928,2]
[328594593,1717587044769,-150.0,0.00028935,2]
[328594594,1717587044779,-150.0,0.00028937,2]
[328594595,1717587044789,-150.0,0.00028942,2]
[328594596,1717587044799,-157.06052,0.00028948,3]
[328594597,1717587044808,-150.0,0.0002895,2]
[328594598,1717587044818,-150.0,0.00028966,2]
[328594599,1717587044828,-165.80199701,0.00028976,2]
[328594600,1717587044841,-150.0,0.00028978,2]
[328594601,1717587044851,-150.0,0.00028978,2]
[328594602,1717587044860,-150.0,0.00028983,2]
[328594603,1717587044870,-321.08881683,0.00028984,2]
[328594604,1717587044879,-152.0,0.0002899,2]
[328594605,1717587044890,-402.79465089,0.0002899,2]
[328594606,1717587044899,-152.0,0.0002899,2]
[328594607,1717587044908,-152.0,0.0002899,2]
[328594608,1717587044921,-16551.79127472,0.00028991,2]
[328594609,1717587044931,-150.0,0.00028993,2]
[328594610,1717587044940,-293.94198306,0.00028994,2]
[328594611,1717587044949,-150.0,0.00028995,2]
[328594612,1717587044959,-150.0,0.00028996,2]
[328594613,1717587044968,-150.0,0.00028997,2]
[328594614,1717587044978,-157.06052,0.00028998,3]
[328594615,1717587044987,-147811.60308213,0.00029,13]
[328594616,1717587044996,-488.0,0.00029,13]
[328594617,1717587045006,-345.0,0.00029,2]
[328594618,1717587045016,-160.0,0.00029,2]
[328594619,1717587045025,-365945.27176864,0.00029,2]
[328594620,1717587045036,-5000.0,0.00029,7]
[328594621,1717587045045,-151.0,0.00029,7]
[328594622,1717587045055,-2668.90190579,0.00029,2]
[328594623,1717587045065,-151.0,0.00029,7]
[328594624,1717587045075,-163.603469,0.00029,7]
[328594625,1717587045086,-236.48222182,0.00029,7]
[328594626,1717587045095,-299.079982,0.00029,7]
[328594627,1717587045105,-151.0,0.00029,7]
[328594628,1717587045114,-155.471968,0.00029,7]
[328594629,1717587045124,-153.100602,0.00029,7]
[328594630,1717587045133,-151.0,0.00029,7]
[328594631,1717587045143,-151.0,0.00029,7]
[328594632,1717587045152,-176.780648,0.00029,7]
[328594633,1717587045161,-151.0,0.00029,7]
[328594634,1717587045172,-150.0,0.00029,2]
[328594635,1717587045182,-151.0,0.00029,7]
[328594636,1717587045192,-151.0,0.00029,7]
[328594637,1717587045201,-151.0,0.00029,7]
[328594638,1717587045211,-1350.0,0.00029,2]
[328594639,1717587045221,-151.0,0.00029,7]
[328594640,1717587045230,-151.0,0.00029,7]
[328594641,1717587045239,-151.0,0.00029,7]
[328594642,1717587045249,-2508.422209,0.00029,2]
[328594643,1717587045259,-157.749597,0.00029,7]
[328594644,1717587045268,-157.749597,0.00029,7]
[328594645,1717587045277,-157.749597,0.00029,7]
[328594646,1717587045288,-157.749597,0.00029,7]
[328594647,1717587045298,-151.0,0.00029,7]
[328594648,1717587045308,-151.0,0.00029,7]
[328594649,1717587045318,-151.0,0.00029,7]
[328594650,1717587045328,-151.0,0.00029,7]
[328594651,1717587045337,-151.0,0.00029,7]
[328594652,1717587045347,-151.0,0.00029,7]
[328594653,1717587045358,-151.0,0.00029,7]
[328594654,1717587045368,-154.638088,0.00029,7]
[328594655,1717587045377,-150.0,0.00029,6]
[328594656,1717587045387,-150.0,0.00029,6]
[328594657,1717587045396,-152.928547,0.00029,7]
[328594658,1717587045405,-151.0,0.00029,7]
[328594659,1717587045415,-150.0,0.00029004,2]
[328594660,1717587045424,-150.0,0.00029006,2]
[328594661,1717587045434,-150.0,0.00029009,2]
[328594662,1717587045443,-150.0,0.00029013,2]
[328594663,1717587045453,-150.0,0.00029016,2]
[328594664,1717587045463,-155.54368379,0.00029016,2]
[328594665,1717587045473,-500.0,0.00029016,2]
[328594666,1717587045482,-500.0,0.00029016,2]
[328594667,1717587045492,-500.0,0.00029016,2]
[328594668,1717587045502,-500.0,0.00029016,2]
[328594669,1717587045512,-500.0,0.00029016,2]
[328594670,1717587045522,-500.0,0.00029016,2]
[328594671,1717587045534,-500.0,0.00029016,2]
[328594672,1717587045543,-500.0,0.00029016,2]
[328594673,1717587045552,-500.0,0.00029016,2]
[328594674,1717587045561,-500.0,0.00029016,2]
[328594675,1717587045570,-500.0,0.00029016,2]
[328594676,1717587045580,-500.0,0.00029016,2]
[328594677,1717587045589,-500.0,0.00029016,2]
[328594678,1717587045599,-500.0,0.00029016,2]
[328594679,1717587045609,-500.0,0.00029016,2]
[328594680,1717587045618,-500.0,0.00029016,2]
[328594681,1717587045628,-500.0,0.00029016,2]
[328594682,1717587045637,-500.0,0.00029016,2]
[328594683,1717587045647,-500.0,0.00029016,2]
[328594684,1717587045656,-500.0,0.00029016,2]
[328594685,1717587045666,-500.0,0.00029016,2]
[328594686,1717587045676,-500.0,0.00029016,2]
[328594687,1717587045685,-500.0,0.00029016,2]
[328594688,1717587045695,-500.0,0.00029016,2]
[328594689,1717587045705,-500.0,0.00029016,2]
[328594691,1717587045715,-500.0,0.00029016,2]
[328594693,1717587045726,-500.0,0.00029016,2]
[328594694,1717587045736,-500.0,0.00029016,2]
[328594695,1717587045746,-500.0,0.00029016,2]
[328594697,1717587045756,-500.0,0.00029016,2]
[328594699,1717587045765,-500.0,0.00029016,2]
[328594701,1717587045775,-500.0,0.00029016,2]
[328594703,1717587045786,-500.0,0.00029016,2]
[328594705,1717587045796,-500.0,0.00029016,2]
[328594706,1717587045805,-500.0,0.00029016,2]
[328594707,1717587045816,-500.0,0.00029016,2]
[328594708,1717587045826,-500.0,0.00029016,2]
[328594709,1717587045836,-500.0,0.00029016,2]
[328594710,1717587045850,-150.0,0.00029017,2]
[328594711,1717587045860,-150.0,0.0002902,2]
[328594712,1717587045870,-150.0,0.00029021,2]
[328594713,1717587045879,-150.0,0.00029026,2]
[328594714,1717587045892,-150.0,0.00029028,2]
[328594715,1717587045902,-295.45184969,0.0002903,2]
[328594716,1717587045912,-150.0,0.00029032,2]
[328594717,1717587045923,-152.0,0.00029038,2]
[328594718,1717587045932,-150.0,0.00029039,2]
[328594719,1717587045942,-150.0,0.0002904,2]
[328594720,1717587045951,-150.0,0.00029041,2]
[328594721,1717587045961,-157.06052,0.00029048,3]
[328594722,1717587045971,-500.0,0.00029048,2]
[328594724,1717587045980,-500.0,0.00029048,2]
[328594726,1717587045990,-500.0,0.00029048,2]
[328594728,1717587045999,-500.0,0.00029048,2]
[328594730,1717587046009,-500.0,0.00029048,2]
[328594731,1717587046018,-500.0,0.00029048,2]
[328594732,1717587046027,-500.0,0.00029048,2]
[328594733,1717587046038,-500.0,0.00029048,2]
[328594734,1717587046047,-500.0,0.00029048,2]
[328594735,1717587046056,-500.0,0.00029048,2]
[328594736,1717587046066,-500.0,0.00029048,2]
[328594737,1717587046076,-500.0,0.00029048,2]